bitfinex/quotes_SOLUSD_20250712
["timestamp","ask_amount","ask_price","bid_price","bid_amount"]
[1752289444730,6.86685942,162.91,162.89,119.71]
[1752289445424,6.20685942,162.91,162.89,119.71]
[1752289445729,0.66,162.9,162.89,119.71]
[1752289446320,3.86685942,162.91,162.89,119.71]
[1752289446930,3.86685942,162.91,162.89,120.38]
[1752289447314,6.20685942,162.91,162.89,120.38]
[1752289448129,6.20685942,162.91,162.89,119.71]
[1752289449720,0.66,162.9,162.89,119.71]
[1752289452812,3.97327459,162.91,162.89,119.71]
[1752289453725,4.63327459,162.91,162.89,119.71]
[1752289453924,0.03,162.92,162.89,120.4]
[1752289454233,0.03,162.92,162.9,0.69]
[1752289454407,0.03,162.92,162.91,30.88]
[1752289455133,0.03,162.92,162.91,31.57]
[1752289457104,0.03,162.92,162.91,30.88]
[1752289457302,6.23612602,162.92,162.91,119.71]
[1752289458310,0.03,162.92,162.91,119.71]
[1752289460423,0.03,162.92,162.91,120.4]
[1752289476264,0.03,162.92,162.91,120.46]
[1752289479659,0.2,162.94,162.92,88.8]
[1752289479843,0.2,162.94,162.93,30.88]
[1752289480052,0.2,162.94,162.93,35.54123993]
[1752289480561,0.03,162.95,162.94,16.78468397]
[1752289480756,0.03,162.95,162.94,21.4459239]
[1752289481064,0.03,162.95,162.94,110.2459239]
[1752289481957,0.03,162.95,162.94,113.35926139]
[1752289482961,0.03,162.95,162.94,115.5889844]
[1752289489755,0.03,162.95,162.94,146.4489844]
[1752289491779,0.03,162.95,162.94,89.52]
[1752289492067,0.03,162.95,162.94,120.38]
[1752289492242,0.03,162.95,162.94,119.66]
[1752289493469,0.7,162.95,162.94,119.66]
[1752289496967,0.03,162.95,162.94,119.66]
[1752289499362,0.03,162.95,162.94,119.72]
[1752289500988,0.03,162.95,162.94,126.64096294]
[1752289501160,0.03,162.95,162.94,143.42564691]
[1752289502270,0.2,162.96,162.95,114.77]
[1752289502472,0.2,162.96,162.95,152.55096294]
[1752289503977,0.2,162.96,162.95,143.33564691]
[1752289505278,0.2,163.0,162.99,42.78468397]
[1752289505477,0.2,163.0,162.99,79.84564691]
[1752289505665,0.2,163.0,162.99,80.56564691]
[1752289506372,0.2,163.0,162.99,336.72564691]
[1752289506763,0.2,163.0,162.99,341.60516831]
[1752289507271,0.2,163.0,162.99,336.72564691]
[1752289509594,0.2,163.0,162.99,348.15401876]
[1752289513374,0.67,163.08,163.04,87.94]
[1752289513574,0.67,163.08,163.05,30.86]
[1752289513791,0.67,163.08,163.06,30.86]
[1752289514094,0.67,163.08,163.07,30.86]
[1752289518306,0.91,163.09,163.07,30.86]
[1752289518594,0.2,163.09,163.07,31.51]
[1752289518971,0.2,163.09,163.07,37.71096294]
[1752289519398,0.2,163.09,163.07,125.65096294]
[1752289521405,0.2,163.09,163.07,119.45]
[1752289523285,0.2,163.09,163.07,118.8]
[1752289523481,0.91,163.09,163.07,118.8]
[1752289526309,0.2,163.09,163.07,118.8]
[1752289527703,0.2,163.09,163.07,119.45]
[1752289528983,0.2,163.09,163.07,118.8]
[1752289533598,0.2,163.09,163.07,87.94]
[1752289533599,3.96329278,163.08,163.07,87.94]
[1752289533807,4.67329278,163.08,163.07,87.94]
[1752289534102,4.67329278,163.08,163.06,30.84]
[1752289534286,4.67329278,163.07,163.05,30.84]
[1752289534498,4.67329278,163.06,163.05,30.84]
[1752289534890,6.90849952,163.06,163.05,30.84]
[1752289536913,6.90849952,163.06,163.04,30.84]
[1752289537112,0.71,163.05,163.04,30.84]
[1752289537611,6.90849952,163.05,163.04,30.84]
[1752289545829,6.90849952,163.05,163.03,0.06]
[1752289546003,6.90849952,163.05,163.04,30.84]
[1752289546004,0.71,163.05,163.04,30.84]
[1752289546210,6.90849952,163.05,163.04,30.84]
[1752289550036,6.19849952,163.05,163.04,30.84]
[1752289551513,6.88849952,163.05,163.04,30.84]
[1752289554831,4.65662446,163.05,163.04,30.84]
[1752289558536,3.96662446,163.05,163.04,30.84]
[1752289558738,0.69,163.08,163.04,31.5]
[1752289559035,3.96662446,163.07,163.05,0.66]
[1752289559212,3.96662446,163.07,163.06,30.84]
[1752289561827,0.2,163.09,163.06,119.44]
[1752289562140,0.2,163.09,163.08,3.96662446]
[1752289562442,0.2,163.09,163.08,34.80662446]
[1752289562642,0.2,163.09,163.08,35.46662446]
[1752289564845,0.2,163.09,163.08,37.69105882]
[1752289567522,0.2,163.09,163.08,54.47574279]
[1752289569654,0.2,163.09,163.08,142.41574279]
[1752289570648,0.2,163.09,163.08,111.57574279]
[1752289570841,0.2,163.09,163.08,142.41574279]
[1752289574657,0.03,163.12,163.11,26.0]
[1752289574838,0.03,163.12,163.11,63.03105882]
[1752289575042,0.03,163.12,163.11,63.68105882]
[1752289578665,0.03,163.12,163.11,151.42105882]
[1752289580763,0.03,163.12,163.11,145.23]
[1752289583669,0.03,163.12,163.11,151.42105882]
[1752289584875,0.03,163.12,163.11,149.19096037]
[1752289597800,0.73,163.12,163.11,113.74]
[1752289597986,0.73,163.12,163.11,144.56]
[1752289598468,0.03,163.12,163.11,144.56]
[1752289599482,0.03,163.12,163.11,145.21]
[1752289600282,0.03,163.12,163.11,149.17096037]
[1752289606492,0.03,163.12,163.11,145.21]
[1752289606703,0.03,163.12,163.11,149.17096037]
[1752289607977,0.03,163.12,163.11,144.56]
[1752289609583,0.03,163.12,163.11,118.56]
[1752289612797,0.03,163.12,163.11,119.27]
[1752289613105,0.03,163.12,163.11,118.56]
[1752289617501,0.03,163.12,163.11,119.27]
[1752289620407,0.03,163.12,163.11,118.56]
[1752289620609,0.7,163.12,163.11,118.56]
[1752289621198,4.66096037,163.12,163.11,118.56]
[1752289622320,4.66096037,163.12,163.11,30.82]
[1752289624222,0.7,163.12,163.11,30.82]
[1752289624519,4.66096037,163.12,163.11,30.82]
[1752289629821,0.03,163.12,163.11,31.53]
[1752289630019,0.03,163.12,163.11,35.49096037]
[1752289630630,0.03,163.12,163.11,123.23096037]
[1752289631327,0.03,163.12,163.11,140.01564434]
[1752289633930,0.03,163.12,163.11,166.01564434]
[1752289634829,0.03,163.16,163.14,3.96096037]
[1752289635031,0.03,163.16,163.15,30.82]
[1752289635331,0.03,163.16,163.15,31.52]
[1752289639533,0.03,163.16,163.14,87.71]
[1752289639745,0.03,163.16,163.15,30.82]
[1752289640217,0.03,163.16,163.15,31.52]
[1752289640639,0.03,163.16,163.15,119.23]
[1752289643841,0.03,163.16,163.15,118.53]
[1752289645440,0.03,163.16,163.15,119.23]
[1752289647934,0.03,163.16,163.15,123.19096037]
[1752289648133,0.03,163.16,163.15,119.23]
[1752289650040,0.03,163.16,163.15,123.19096037]
[1752289651341,0.03,163.16,163.15,119.23]
[1752289651920,0.69,163.16,163.15,118.53]
[1752289652134,4.65096037,163.16,163.15,118.53]
[1752289653140,0.03,163.16,163.15,118.53]
[1752289653636,0.69,163.16,163.15,118.53]
[1752289654018,0.03,163.16,163.15,118.53]
[1752289655028,0.69,163.16,163.15,118.53]
[1752289656252,0.03,163.16,163.15,87.71]
[1752289656441,0.69,163.16,163.15,118.53]
[1752289656955,0.03,163.16,163.15,118.53]
[1752289658353,0.03,163.16,163.15,87.71]
[1752289658645,0.69,163.16,163.15,118.53]
[1752289658829,4.65096037,163.16,163.15,118.53]
[1752289662743,0.03,163.16,163.15,118.53]
[1752289664263,0.03,163.16,163.15,30.82]
[1752289667461,0.03,163.16,163.15,31.51]
[1752289668166,0.03,163.16,163.15,30.82]
[1752289668467,4.65096037,163.16,163.15,30.82]
[1752289668647,4.65096037,163.16,163.11,87.71]
[1752289668842,3.96096037,163.12,163.11,87.71]
[1752289669049,4.62096037,163.12,163.09,87.77]
[1752289669357,0.66,163.11,163.1,30.82]
[1752289670475,4.62096037,163.11,163.1,30.82]
[1752289670967,6.85406958,163.11,163.1,30.82]
[1752289677572,0.66,163.12,163.1,30.82]
[1752289677770,6.19406958,163.11,163.1,30.82]
[1752289679575,6.85406958,163.11,163.1,30.82]
[1752289679988,6.85406958,163.11,163.09,30.88]
[1752289680278,6.85406958,163.1,163.09,0.06]
[1752289682471,6.19406958,163.1,163.09,0.06]
[1752289684276,26.0,163.14,163.09,0.06]
[1752289684277,0.66,163.13,163.09,0.75]
[1752289684475,6.19406958,163.13,163.1,30.82]
[1752289684779,6.19406958,163.13,163.11,0.69]
[1752289684977,6.19406958,163.13,163.12,30.82]
[1752289685280,6.19406958,163.13,163.12,31.51]
[1752289685865,6.19406958,163.15,163.12,31.51]
[1752289686158,6.22406958,163.16,163.13,0.69]
[1752289686361,6.22406958,163.16,163.14,30.82]
[1752289686579,6.22406958,163.16,163.14,31.51]
[1752289687481,6.19406958,163.15,163.14,30.82]
[1752289688166,0.03,163.16,163.14,30.82]
[1752289688377,6.19406958,163.15,163.14,30.82]
[1752289688768,6.22406958,163.16,163.14,31.51]
[1752289688968,0.03,163.16,163.15,0.69]
[1752289692078,6.22406958,163.16,163.15,0.69]
[1752289692796,6.22406958,163.16,163.14,30.82]
[1752289692993,6.22406958,163.16,163.14,31.51]
[1752289694078,6.22406958,163.16,163.14,30.82]
[1752289694279,6.22406958,163.16,163.15,0.7]
[1752289695092,6.22406958,163.16,163.14,30.82]
[1752289695302,6.22406958,163.16,163.14,31.52]
[1752289696197,6.22406958,163.16,163.15,0.7]
[1752289697001,6.22406958,163.16,163.14,31.52]
[1752289699706,6.22406958,163.16,163.14,119.23]
[1752289701298,6.19406958,163.15,163.14,119.23]
[1752289702101,6.19406958,163.15,163.14,118.53]
[1752289702405,6.91406958,163.15,163.14,118.53]
[1752289702800,6.19406958,163.15,163.14,118.53]
[1752289704106,6.19406958,163.15,163.14,119.23]
[1752289704789,6.19406958,163.15,163.14,118.53]
[1752289705180,0.03,163.16,163.14,118.53]
[1752289705391,6.19406958,163.15,163.14,118.53]
[1752289705795,6.19406958,163.15,163.14,30.82]
[1752289705996,0.03,163.16,163.14,31.52]
[1752289706312,6.19406958,163.15,163.14,31.52]
[1752289708012,0.03,163.16,163.14,31.52]
[1752289708316,0.03,163.16,163.15,0.7]
[1752289711415,0.03,163.16,163.15,88.41]
[1752289722126,4.71023878,163.16,163.15,87.71]
[1752289722827,6.94056141,163.16,163.15,87.71]
[1752289723027,6.94056141,163.16,163.15,118.51]
[1752289723724,6.94056141,163.16,163.15,87.71]
[1752289723916,6.94056141,163.16,163.15,118.51]
[1752289726523,6.22056141,163.16,163.15,30.8]
[1752289735540,6.89056141,163.16,163.15,30.8]
[1752289736430,6.22056141,163.16,163.15,30.8]
[1752289739655,6.22056141,163.16,163.15,31.49]
[1752289742742,6.22056141,163.16,163.15,30.8]
[1752289744657,6.22056141,163.16,163.15,31.49]
[1752289744860,3.99155542,163.16,163.15,31.49]
[1752289755168,0.03,163.16,163.15,31.49]
[1752289760876,3.99155542,163.16,163.15,31.49]
[1752289761172,3.99155542,163.16,163.15,30.8]
[1752289764671,3.99155542,163.16,163.15,31.48]
[1752289766773,3.99155542,163.16,163.15,30.8]
[1752289767575,3.99155542,163.16,163.15,31.48]
[1752289769175,0.03,163.16,163.15,31.48]
[1752289773361,3.99155542,163.16,163.15,31.48]
[1752289773768,0.03,163.16,163.15,119.19]
[1752289774289,3.99155542,163.16,163.15,119.19]
[1752289774487,4.65155542,163.16,163.15,87.71]
[1752289774694,4.65155542,163.16,163.15,118.51]
[1752289774867,4.65155542,163.16,163.15,87.71]
[1752289776171,6.93054102,163.16,163.12,0.06]
[1752289776376,3.96155542,163.13,163.12,30.86]
[1752289778859,4.62155542,163.13,163.12,0.06]
[1752289779284,3.96155542,163.13,163.12,0.06]
[1752289781068,0.66,163.14,163.12,0.06]
[1752289781272,3.96155542,163.13,163.12,0.06]
[1752289782389,3.96155542,163.13,163.12,0.74]
[1752289785097,3.96155542,163.14,163.12,0.74]
[1752289785274,3.96155542,163.14,163.13,30.8]
[1752289785588,3.96155542,163.14,163.13,31.5]
[1752289785788,0.03,163.16,163.13,31.5]
[1752289786103,3.96155542,163.14,163.12,0.06]
[1752289786392,0.68,163.15,163.13,30.8]
[1752289786592,0.68,163.15,163.12,30.86]
[1752289787370,3.96155542,163.13,163.12,30.86]
[1752289787867,3.96155542,163.13,163.12,31.56]
[1752289788393,0.03,163.16,163.12,31.56]
[1752289788694,3.96155542,163.14,163.13,0.7]
[1752289789788,3.99155542,163.16,163.13,0.7]
[1752289789970,3.99155542,163.16,163.14,30.8]
[1752289790175,3.96155542,163.15,163.14,31.5]
[1752289790583,3.99155542,163.16,163.14,31.5]
[1752289792581,3.96155542,163.15,163.14,30.8]
[1752289792784,4.64155542,163.15,163.14,30.8]
[1752289794299,0.68,163.15,163.14,30.8]
[1752289794598,4.64155542,163.15,163.14,30.8]
[1752289794776,4.64155542,163.15,163.12,88.47]
[1752289794976,3.96155542,163.13,163.12,119.27]
[1752289797404,3.96155542,163.13,163.12,31.56]
[1752289801229,3.96155542,163.14,163.12,31.56]
[1752289801396,3.96155542,163.14,163.13,0.7]
[1752289801913,3.96155542,163.15,163.13,0.7]
[1752289802114,0.03,163.15,163.14,30.8]
[1752289802410,0.03,163.15,163.14,31.5]
[1752289803417,0.03,163.15,163.14,119.21]
[1752289804013,3.99155542,163.15,163.14,119.21]
[1752289804312,3.99155542,163.15,163.14,118.51]
[1752289804701,4.67155542,163.15,163.14,118.51]
[1752289805410,3.99155542,163.15,163.14,118.51]
[1752289805918,4.67155542,163.15,163.14,87.71]
[1752289808607,3.99155542,163.15,163.14,87.71]
[1752289809420,3.99155542,163.15,163.13,30.8]
[1752289809621,3.96155542,163.14,163.13,30.8]
[1752289810218,3.96155542,163.14,163.13,31.5]
[1752289810399,3.99155542,163.15,163.13,31.5]
[1752289810721,3.99155542,163.15,163.14,0.7]
[1752289815320,3.99155542,163.15,163.13,30.8]
[1752289815521,3.96155542,163.14,163.13,30.8]
[1752289816436,3.96155542,163.14,163.13,31.5]
[1752289817132,3.96155542,163.14,163.13,30.8]
[1752289818624,3.96155542,163.14,163.13,31.5]
[1752289823756,3.96155542,163.14,163.13,30.8]
[1752289823941,4.66155542,163.14,163.13,30.8]
[1752289824240,3.99155542,163.14,163.12,0.06]
[1752289824438,3.96155542,163.13,163.12,0.06]
[1752289824934,3.96155542,163.13,163.12,0.76]
[1752289825318,3.99155542,163.14,163.12,0.76]
[1752289826937,3.96155542,163.13,163.12,0.76]
[1752289827654,3.96155542,163.13,163.12,0.06]
[1752289827954,3.99155542,163.14,163.12,0.06]
[1752289828253,3.99155542,163.14,163.12,0.76]
[1752289828641,3.96155542,163.13,163.12,0.76]
[1752289830442,0.03,163.14,163.12,0.76]
[1752289830443,3.99155542,163.14,163.12,0.76]
[1752289833841,0.03,163.14,163.12,0.76]
[1752289834141,0.03,163.14,163.13,30.8]
[1752289834747,0.03,163.14,163.13,31.5]
[1752289837544,0.03,163.14,163.13,35.46155542]
[1752289838945,0.03,163.14,163.13,123.17155542]
[1752289839343,0.03,163.14,163.13,119.21]
[1752289847184,0.03,163.14,163.13,123.17155542]
[1752289851505,0.03,163.14,163.13,88.41]
[1752289851798,0.03,163.14,163.13,119.19]
[1752289855099,0.03,163.14,163.13,118.49]
[1752289856099,3.99155542,163.14,163.13,118.49]
[1752289856604,4.66155542,163.14,163.13,30.78]
[1752289856898,4.66155542,163.14,163.12,0.06]
[1752289857099,4.63155542,163.13,163.12,30.84]
[1752289858498,0.67,163.13,163.12,30.84]
[1752289858704,3.96155542,163.13,163.12,30.84]
[1752289858882,6.19257245,163.13,163.12,30.84]
[1752289859604,6.86257245,163.13,163.12,30.84]
[1752289860088,6.19257245,163.13,163.12,30.84]
[1752289860399,6.19257245,163.13,163.12,31.51]
[1752289860603,6.22257245,163.14,163.12,31.51]
[1752289867081,0.03,163.14,163.13,0.67]
[1752289868387,0.03,163.14,163.13,88.38]
[1752289869693,0.03,163.14,163.13,87.71]
[1752289871121,0.03,163.14,163.13,88.38]
[1752289871611,0.03,163.14,163.13,87.71]
[1752289873719,0.03,163.14,163.13,88.38]
[1752289874013,0.03,163.14,163.13,87.71]
[1752289879714,0.03,163.14,163.13,88.37]
[1752289882328,0.03,163.14,163.13,87.71]
[1752289884222,0.03,163.14,163.13,88.37]
[1752289886619,0.03,163.14,163.13,92.33180671]
[1752289888030,0.03,163.14,163.13,88.37]
[1752289899247,0.03,163.14,163.13,118.49]
[1752289899661,0.03,163.14,163.13,119.15]
[1752289900627,0.03,163.14,163.13,118.49]
[1752289900832,0.03,163.14,163.13,119.15]
[1752289910349,0.03,163.14,163.13,123.11180671]
[1752289913445,0.03,163.14,163.13,165.89649068]
[1752289915980,0.03,163.15,163.14,91.64180671]
[1752289916276,0.03,163.15,163.14,123.09180671]
[1752289916457,0.03,163.15,163.14,122.42180671]
[1752289916663,0.03,163.15,163.14,123.09180671]
[1752289919482,0.03,163.15,163.14,139.87649068]
[1752289920685,0.03,163.15,163.14,289.27649068]
[1752289923577,0.03,163.15,163.14,258.49649068]
[1752289923881,0.03,163.15,163.14,289.27649068]
[1752289924658,0.03,163.16,163.15,113.65]
[1752289924855,0.03,163.16,163.15,145.1]
[1752289925093,0.03,163.16,163.15,149.06180671]
[1752289929691,0.03,163.16,163.15,139.84649068]
[1752289930581,0.2,163.2,163.19,26.0]
[1752289930779,0.2,163.2,163.19,144.4]
[1752289936282,0.2,163.2,163.19,145.06]
[1752289937190,0.2,163.2,163.19,144.4]
[1752289938278,0.89,163.2,163.19,144.4]
[1752289938670,0.89,163.2,163.19,118.4]
[1752289940296,0.2,163.2,163.19,118.4]
[1752289941373,0.2,163.2,163.19,119.06]
[1752289944403,0.2,163.2,163.19,123.02180671]
[1752289948785,0.2,163.2,163.19,118.4]
[1752289948986,0.89,163.2,163.19,118.4]
[1752289949514,4.85180671,163.2,163.19,87.62]
[1752289952410,0.89,163.2,163.19,87.62]
[1752289952603,4.85180671,163.2,163.19,87.62]
[1752289954296,4.85180671,163.2,163.17,118.38]
[1752289954496,4.65180671,163.19,163.17,118.38]
[1752289956894,0.69,163.18,163.17,118.38]
[1752289958193,4.65180671,163.19,163.17,118.38]
[1752289958511,0.69,163.19,163.17,118.38]
[1752289958721,4.65180671,163.19,163.17,118.38]
[1752289961014,0.69,163.19,163.17,118.38]
[1752289961916,4.65180671,163.19,163.17,118.38]
[1752289964713,3.96180671,163.19,163.17,118.38]
[1752289965018,4.64180671,163.18,163.17,30.76]
[1752289965412,4.64180671,163.18,163.16,30.76]
[1752289965616,0.68,163.17,163.16,30.76]
[1752289966421,4.64180671,163.17,163.16,30.76]
[1752289968823,3.96180671,163.17,163.16,30.76]
[1752289969021,4.64180671,163.18,163.16,30.76]
[1752289972418,0.68,163.18,163.16,30.76]
[1752289972627,3.96180671,163.18,163.16,31.45]
[1752289977126,0.2,163.2,163.17,0.69]
[1752289977330,0.03,163.18,163.17,0.69]
[1752289981029,0.03,163.18,163.17,88.31]
[1752289982031,0.03,163.18,163.17,92.27180671]
[1752289984802,0.03,163.18,163.17,93.80150671]
[1752289997421,0.03,163.18,163.17,92.27180671]
[1752289998738,0.03,163.18,163.17,88.31]
[1752289998926,0.03,163.18,163.17,118.38]
[1752289999125,0.03,163.18,163.17,119.05]
[1752290002149,0.03,163.18,163.17,118.38]
[1752290003041,0.03,163.18,163.17,119.05]
[1752290004149,0.89,163.2,163.17,119.05]
[1752290007551,0.2,163.2,163.17,119.05]
[1752290008549,0.2,163.2,163.18,0.67]
[1752290008736,0.2,163.2,163.19,30.76]
[1752290010751,0.2,163.2,163.19,31.43]
[1752290010952,0.2,163.2,163.19,35.39180671]
[1752290013332,0.2,163.2,163.19,123.01180671]
[1752290014151,0.03,163.22,163.19,123.01180671]
[1752290014351,0.03,163.22,163.2,4.63180671]
[1752290014550,0.03,163.22,163.21,30.76]
[1752290015174,0.03,163.22,163.21,31.43]
[1752290017557,0.03,163.22,163.21,30.76]
[1752290018966,0.03,163.22,163.21,31.43]
[1752290019433,0.03,163.22,163.21,119.05]
[1752290020850,0.03,163.22,163.21,118.38]
[1752290021859,0.72,163.22,163.21,118.38]
[1752290022257,0.03,163.22,163.21,118.38]
[1752290022861,0.03,163.22,163.21,119.05]
[1752290024059,0.03,163.22,163.21,118.38]
[1752290024462,0.74,163.22,163.21,118.38]
[1752290026660,0.03,163.22,163.21,118.38]
[1752290029058,0.03,163.22,163.21,119.1]
[1752290029241,0.03,163.22,163.21,118.38]
[1752290031942,0.74,163.22,163.21,118.38]
[1752290032338,0.03,163.22,163.21,119.1]
[1752290032564,0.03,163.22,163.21,118.38]
[1752290032759,0.74,163.22,163.21,118.38]
[1752290033464,0.03,163.22,163.21,118.38]
[1752290034664,0.74,163.22,163.21,118.38]
[1752290036571,4.70180671,163.22,163.21,118.38]
[1752290036954,4.70180671,163.22,163.21,30.76]
[1752290037867,0.74,163.22,163.21,30.76]
[1752290038558,0.03,163.22,163.21,30.76]
[1752290041851,4.70180671,163.22,163.19,87.62]
[1752290042053,0.74,163.22,163.2,30.76]
[1752290042353,4.67180671,163.21,163.19,87.62]
[1752290042556,3.96180671,163.2,163.19,118.38]
[1752290043068,4.67180671,163.21,163.19,30.76]
[1752290043654,3.96180671,163.21,163.19,30.76]
[1752290043864,3.96180671,163.21,163.19,31.48]
[1752290044054,3.96180671,163.21,163.19,30.76]
[1752290044364,4.67180671,163.21,163.19,30.76]
[1752290044853,4.67180671,163.2,163.19,30.76]
[1752290046061,4.67180671,163.2,163.18,87.68]
[1752290046261,3.96180671,163.19,163.18,118.44]
[1752290046463,4.67180671,163.19,163.18,118.44]
[1752290047176,3.96180671,163.19,163.18,118.44]
[1752290047874,3.96180671,163.2,163.18,119.16]
[1752290048259,4.67180671,163.2,163.18,118.44]
[1752290048978,3.96180671,163.19,163.18,30.82]
[1752290051981,4.67180671,163.2,163.18,30.82]
[1752290054176,3.96180671,163.2,163.18,30.82]
[1752290054887,3.96180671,163.2,163.18,31.53]
[1752290058285,3.96180671,163.2,163.18,30.82]
[1752290058593,4.62180671,163.2,163.18,30.82]
[1752290058772,3.96180671,163.2,163.18,31.53]
[1752290059674,3.96180671,163.2,163.19,0.71]
[1752290061592,3.96180671,163.2,163.18,30.82]
[1752290061799,3.96180671,163.2,163.18,31.53]
[1752290061975,3.96180671,163.2,163.18,30.82]
[1752290062180,3.96180671,163.2,163.19,0.71]
[1752290062381,3.96180671,163.2,163.18,30.82]
[1752290062576,3.96180671,163.2,163.18,31.53]
[1752290064296,0.66,163.21,163.18,31.53]
[1752290064498,3.96180671,163.2,163.18,31.53]
[1752290067099,4.62180671,163.21,163.18,31.53]
[1752290067791,3.96180671,163.21,163.18,31.53]
[1752290068000,3.96180671,163.21,163.19,0.71]
[1752290068494,3.96180671,163.21,163.18,30.76]
[1752290068703,4.62180671,163.21,163.17,84.44728813]
[1752290069883,4.62180671,163.21,163.18,30.76]
[1752290070201,3.96180671,163.21,163.18,30.76]
[1752290070497,4.62180671,163.2,163.18,30.76]
[1752290070709,0.66,163.19,163.18,30.76]
[1752290070891,4.62180671,163.19,163.17,30.76]
[1752290071381,4.62180671,163.19,163.17,31.47]
[1752290073800,4.62180671,163.19,163.17,30.76]
[1752290074511,3.96180671,163.19,163.17,30.76]
[1752290074984,4.62180671,163.19,163.17,30.76]
[1752290077309,3.96180671,163.18,163.17,30.76]
[1752290078504,4.62180671,163.18,163.16,0.06]
[1752290078805,4.62180671,163.17,163.16,0.06]
[1752290080915,3.96180671,163.17,163.16,0.06]
[1752290082096,0.66,163.18,163.16,0.06]
[1752290082296,3.96180671,163.17,163.16,0.06]
[1752290082497,4.62180671,163.18,163.16,0.06]
[1752290084108,4.63180671,163.17,163.16,0.06]
[1752290087816,3.96180671,163.17,163.16,0.06]
[1752290088005,4.63180671,163.18,163.16,0.06]
[1752290090418,0.03,163.17,163.16,0.06]
[1752290100325,0.03,163.17,163.16,0.75]
[1752290100517,0.03,163.17,163.16,4.71180671]
[1752290102132,0.03,163.17,163.16,89.15909484]
[1752290105334,0.03,163.17,163.16,105.94377881]
[1752290110944,0.03,163.22,163.18,84.41728813]
[1752290111125,0.03,163.22,163.21,3.96180671]
[1752290111324,0.03,163.22,163.21,34.70180671]
[1752290111525,0.03,163.22,163.21,35.39180671]
[1752290112640,0.03,163.22,163.21,119.80909484]
[1752290123453,0.03,163.22,163.21,115.15728813]
[1752290123641,4.66180671,163.22,163.21,84.41728813]
[1752290123849,4.66180671,163.22,163.21,115.15728813]
[1752290124149,0.7,163.22,163.21,115.15728813]
[1752290126551,0.03,163.22,163.21,115.15728813]
[1752290126865,0.03,163.22,163.21,115.85728813]
[1752290128062,0.03,163.22,163.21,115.15728813]
[1752290128269,0.7,163.22,163.21,115.15728813]
[1752290129558,0.03,163.22,163.21,115.15728813]
[1752290130950,0.7,163.22,163.21,115.15728813]
[1752290132166,0.03,163.22,163.21,115.15728813]
[1752290132770,0.7,163.22,163.21,115.15728813]
[1752290133136,0.7,163.22,163.21,84.41728813]
[1752290133339,0.7,163.22,163.21,115.15728813]
[1752290134952,4.66180671,163.22,163.21,115.15728813]
[1752290136167,0.7,163.22,163.21,115.15728813]
[1752290137865,0.03,163.22,163.21,115.15728813]
[1752290139264,4.66180671,163.22,163.19,84.41728813]